bitfinex/quotes_BTCUSD_20250618
["timestamp","ask_amount","ask_price","bid_price","bid_amount"]
[1750220318283,0.42110059,105430.0,105420.0,0.81363643]
[1750220318884,0.48360131,105430.0,105420.0,0.80884117]
[1750220319322,0.48360131,105430.0,105420.0,0.80636117]
[1750220319773,0.47411635,105430.0,105420.0,0.80636117]
[1750220320425,0.40213157,105430.0,105420.0,0.80636117]
[1750220320641,0.41161635,105430.0,105420.0,0.80636117]
[1750220323039,0.41161635,105430.0,105420.0,0.51526117]
[1750220325178,0.37367822,105430.0,105420.0,0.51526117]
[1750220325383,0.39264661,105430.0,105420.0,0.51526117]
[1750220325796,0.40213112,105430.0,105420.0,0.51526117]
[1750220326442,0.40213112,105430.0,105420.0,0.56526117]
[1750220326649,0.40213112,105430.0,105420.0,0.51526117]
[1750220327218,0.40213112,105430.0,105420.0,0.56526117]
[1750220327494,0.40213112,105430.0,105420.0,0.51526117]
[1750220327698,0.40213103,105430.0,105420.0,0.51526117]
[1750220328776,0.39264661,105430.0,105420.0,0.51526117]
[1750220328977,0.40213094,105430.0,105420.0,0.51526117]
[1750220329105,0.40213094,105430.0,105420.0,0.56526117]
[1750220329517,0.40213094,105430.0,105420.0,0.51526117]
[1750220330320,0.05264661,105430.0,105420.0,0.51526117]
[1750220330511,0.39264661,105430.0,105420.0,0.51526117]
[1750220332788,0.40213094,105430.0,105420.0,0.51526117]
[1750220332992,0.39264661,105430.0,105420.0,0.51526117]
[1750220333616,0.39264661,105430.0,105420.0,0.54776117]
[1750220335504,0.38316237,105430.0,105420.0,0.54776117]
[1750220336037,0.39264661,105430.0,105420.0,0.54776117]
[1750220337104,0.38316237,105430.0,105420.0,0.54776117]
[1750220337313,0.37367822,105430.0,105420.0,0.54776117]
[1750220337742,0.03367822,105430.0,105420.0,0.59776117]
[1750220337955,0.03367822,105430.0,105420.0,0.54776117]
[1750220338838,0.04316237,105430.0,105420.0,0.54776117]
[1750220340165,0.0526467,105430.0,105420.0,0.54776117]
[1750220340483,0.04316237,105430.0,105420.0,0.51526117]
[1750220340724,0.04316237,105430.0,105420.0,0.56526117]
[1750220340936,0.04316237,105430.0,105420.0,0.51526117]
[1750220341906,0.03367822,105430.0,105420.0,0.51526117]
[1750220342539,0.04316237,105430.0,105420.0,0.51526117]
[1750220343171,0.04316237,105430.0,105420.0,0.56526117]
[1750220343292,0.04316237,105430.0,105420.0,0.51526117]
[1750220343699,0.0526467,105430.0,105420.0,0.51526117]
[1750220343927,0.05264679,105430.0,105420.0,0.34213053]
[1750220344137,0.05264679,105430.0,105420.0,0.51522126]
[1750220344757,0.06213139,105430.0,105420.0,0.51522126]
[1750220344962,0.07161617,105430.0,105420.0,0.51522126]
[1750220345158,0.06213139,105430.0,105420.0,0.56522126]
[1750220345388,0.07161617,105430.0,105420.0,0.51522126]
[1750220345574,0.06213139,105430.0,105420.0,0.51522126]
[1750220346227,0.06213139,105430.0,105420.0,0.56522126]
[1750220346433,0.06213139,105430.0,105420.0,0.51522126]
[1750220346606,0.07161617,105430.0,105420.0,0.51522126]
[1750220346835,0.40213139,105430.0,105420.0,0.51522126]
[1750220347036,0.47301617,105430.0,105420.0,0.50573603]
[1750220347197,0.48250113,105430.0,105420.0,0.55817549]
[1750220347402,0.48250185,105430.0,105420.0,0.50817549]
[1750220347638,0.47301743,105430.0,105420.0,0.49859017]
[1750220348314,0.66271675,105430.0,105420.0,0.49859017]
[1750220348521,0.68550528,105430.0,105420.0,0.49859017]
[1750220348669,0.67602068,105430.0,105420.0,0.49859017]
[1750220348876,0.65323215,105430.0,105420.0,0.49859017]
[1750220349293,0.65323215,105430.0,105420.0,0.52961908]
[1750220349631,0.66653146,105430.0,105420.0,0.54869053]
[1750220349841,0.20868823,105420.0,105410.0,0.32682039]
[1750220350061,0.03794254,105420.0,105410.0,0.62626837]
[1750220350496,0.01897037,105420.0,105410.0,0.6357945]
[1750220350711,0.02845596,105420.0,105410.0,0.6357945]
[1750220350900,0.03794164,105420.0,105410.0,0.6357945]
[1750220351338,0.02845596,105420.0,105410.0,0.6357945]
[1750220352658,0.01897037,105420.0,105410.0,0.6357945]
[1750220352877,0.02845587,105420.0,105410.0,0.6357945]
[1750220353612,0.03794146,105420.0,105410.0,0.6357945]
[1750220353937,0.04742714,105420.0,105410.0,0.6357945]
[1750220354757,0.04742786,105420.0,105410.0,0.6357945]
[1750220354973,0.11032786,105420.0,105410.0,0.6361145]
[1750220357377,0.28107436,105420.0,105410.0,0.45321584]
[1750220357596,0.62107436,105420.0,105410.0,0.46270242]
[1750220357827,0.63437286,105420.0,105410.0,0.61714242]
[1750220358261,0.62488718,105420.0,105410.0,0.61714242]
[1750220358892,0.60210309,105420.0,105410.0,0.61714242]
[1750220361044,0.60210309,105420.0,105410.0,0.60765584]
[1750220361257,0.60210309,105420.0,105410.0,0.61714251]
[1750220361471,0.60210309,105420.0,105410.0,0.62662909]
[1750220362860,0.60210309,105420.0,105410.0,0.67662909]
[1750220363105,0.60210309,105420.0,105410.0,0.62662909]
[1750220363535,0.53920309,105420.0,105410.0,0.62662909]
[1750220364168,0.60290309,105420.0,105410.0,0.62662909]
[1750220365233,0.60290309,105420.0,105410.0,0.63611558]
[1750220366544,0.60290309,105420.0,105410.0,0.62662909]
[1750220370347,0.60290309,105420.0,105410.0,0.61714251]
[1750220373145,0.53920309,105420.0,105410.0,0.61714251]
[1750220373568,0.53920309,105420.0,105410.0,0.62662909]
[1750220373798,0.56196291,105420.0,105410.0,0.62662909]
[1750220374649,0.56196291,105420.0,105410.0,0.63611549]
[1750220374882,0.56196291,105420.0,105410.0,0.6456018]
[1750220375101,0.56196291,105420.0,105410.0,0.63611549]
[1750220377327,0.53920309,105420.0,105410.0,0.63611549]
[1750220378182,0.56196508,105420.0,105410.0,0.62662909]
[1750220378660,0.59366508,105420.0,105410.0,0.62662909]
[1750220379413,0.59316233,105420.0,105410.0,0.62662909]
[1750220379619,0.56146233,105420.0,105410.0,0.63611558]
[1750220382470,0.56146233,105420.0,105410.0,0.47218909]
[1750220382662,0.56146233,105420.0,105410.0,0.62622909]
[1750220383606,0.56146233,105420.0,105410.0,0.63571558]
[1750220386966,0.56146233,105420.0,105410.0,0.62622909]
[1750220387819,0.55247931,105420.0,105410.0,0.61674251]
[1750220389631,0.18971732,105420.0,105410.0,0.61674251]
[1750220391377,0.18971732,105420.0,105410.0,0.41752053]
[1750220391645,0.18971732,105420.0,105410.0,0.11811201]
[1750220391866,0.59431732,105420.0,105410.0,0.31167201]
[1750220392084,0.64561997,105420.0,105410.0,0.31167201]
[1750220393391,0.64561997,105420.0,105410.0,0.11811201]
[1750220393934,0.66342332,105420.0,105410.0,0.07062515]
[1750220394173,0.26362189,105410.0,105400.0,0.03964]
[1750220394417,0.62142524,105410.0,105400.0,0.1640084]
[1750220394639,0.62142524,105410.0,105380.0,0.3437722]
[1750220394640,0.54874817,105390.0,105380.0,0.3437722]
[1750220394876,0.54874817,105390.0,105380.0,0.44001396]
[1750220395091,0.54874817,105390.0,105380.0,0.3437722]
[1750220395331,0.53927861,105380.0,105370.0,0.19929761]
[1750220395569,0.53927861,105380.0,105370.0,0.49866946]
[1750220396021,0.53927861,105380.0,105370.0,0.34466946]
[1750220396227,0.53927861,105380.0,105370.0,0.49866955]
[1750220396471,0.5487678,105380.0,105370.0,0.50815955]
[1750220396660,0.5582569,105380.0,105370.0,0.51764946]
[1750220396872,0.5582569,105380.0,105370.0,0.55004946]
[1750220397318,0.58713965,105380.0,105370.0,0.58504946]
[1750220397550,0.58713965,105380.0,105370.0,0.42155955]
[1750220397786,0.58713965,105380.0,105370.0,0.57559955]
[1750220397991,0.58713965,105380.0,105370.0,0.57759955]
[1750220398177,0.58713965,105380.0,105370.0,0.58708946]
[1750220399682,0.58713965,105380.0,105370.0,0.58698946]
[1750220400132,0.58713965,105380.0,105370.0,0.58690179]
[1750220401248,0.40683969,105380.0,105370.0,0.59639107]
[1750220401542,0.39735032,105380.0,105370.0,0.59639107]
[1750220402006,0.36888275,105380.0,105370.0,0.59639107]
[1750220402253,0.02888275,105380.0,105370.0,0.66093192]
[1750220402740,0.36846406,105390.0,105380.0,0.33015663]
[1750220402953,0.37795244,105390.0,105380.0,0.42639839]
[1750220404351,0.37795244,105390.0,105380.0,0.37639839]
[1750220405315,0.38744091,105390.0,105380.0,0.37639839]
[1750220405719,0.41604551,105390.0,105380.0,0.37639839]
[1750220409375,0.40655704,105390.0,105380.0,0.37639839]
[1750220411402,0.41604551,105390.0,105380.0,0.37639839]
[1750220414675,0.40655686,105390.0,105380.0,0.37639839]
[1750220417350,0.39706848,105390.0,105380.0,0.37639839]
[1750220417555,0.40655677,105390.0,105380.0,0.37639839]
[1750220418018,0.03809253,105390.0,105380.0,0.37639839]
[1750220419084,0.03809244,105390.0,105380.0,0.42639839]
[1750220419323,0.0286046,105390.0,105380.0,0.39093924]
[1750220419540,0.01897568,105390.0,105380.0,0.39093924]
[1750220419744,0.04759373,105390.0,105380.0,0.39093924]
[1750220419954,0.04759364,105390.0,105380.0,0.39093924]
[1750220421198,0.05708157,105390.0,105380.0,0.39093924]
[1750220421415,0.04759364,105390.0,105380.0,0.39093924]
[1750220422052,0.0381058,105390.0,105380.0,0.39093924]
[1750220422491,0.02861805,105390.0,105380.0,0.39093924]
[1750220422710,0.36846181,105400.0,105390.0,0.27953592]
[1750220422932,0.36846181,105400.0,105390.0,0.56929768]
[1750220423151,0.37794938,105400.0,105390.0,0.56929768]
[1750220424300,0.37994938,105400.0,105390.0,0.56929768]
[1750220424522,0.38943704,105400.0,105390.0,0.56929768]
[1750220424729,0.41880172,105400.0,105390.0,0.56929768]
[1750220426840,0.58958071,105400.0,105390.0,0.55032155]
[1750220427073,0.54874817,105390.0,105380.0,0.52347773]
[1750220427304,0.54874817,105390.0,105380.0,0.42690176]
[1750220427522,0.61064817,105390.0,105380.0,0.58122176]
[1750220427722,0.63340675,105390.0,105380.0,0.58122176]
[1750220428421,0.63540675,105390.0,105380.0,0.58122176]
[1750220428837,0.63640675,105390.0,105380.0,0.58122176]
[1750220429371,0.63640675,105390.0,105380.0,0.29012176]
[1750220431919,0.63640675,105390.0,105380.0,0.19388]
[1750220438224,0.57450675,105390.0,105380.0,0.39315861]
[1750220438440,0.57450675,105390.0,105380.0,0.46774771]
[1750220438441,0.57072448,105390.0,105380.0,0.46774771]
[1750220438875,0.56123646,105390.0,105380.0,0.46774771]
[1750220440251,0.56123646,105390.0,105380.0,0.46762771]
[1750220440471,0.56123646,105390.0,105380.0,0.47711672]
[1750220441889,0.56123646,105390.0,105380.0,0.46762771]
[1750220442780,0.343,105390.0,105380.0,0.6233583]
[1750220443009,0.35248775,105390.0,105380.0,0.6233583]
[1750220443747,0.343,105390.0,105380.0,0.6233583]
[1750220444427,0.343,105390.0,105380.0,0.63789915]
[1750220444676,0.003,105390.0,105380.0,0.58789915]
[1750220447263,0.00136,105390.0,105380.0,0.61297915]
[1750220447496,0.00136,105390.0,105380.0,0.68923135]
[1750220448178,4.723e-05,105410.0,105400.0,0.29325607]
[1750220448402,4.723e-05,105410.0,105400.0,0.63333783]
[1750220449321,4.723e-05,105410.0,105400.0,0.58333783]
[1750220449551,4.723e-05,105410.0,105400.0,0.63333783]
[1750220449768,4.723e-05,105410.0,105400.0,0.58333783]
[1750220450640,4.723e-05,105410.0,105400.0,0.58433783]
[1750220452928,4.723e-05,105410.0,105400.0,0.63433783]
[1750220453142,4.723e-05,105410.0,105400.0,0.58433783]
[1750220454871,4.723e-05,105410.0,105400.0,0.63433783]
[1750220455117,4.723e-05,105410.0,105400.0,0.58433783]
[1750220456191,4.723e-05,105410.0,105400.0,0.63433783]
[1750220458209,4.723e-05,105410.0,105400.0,0.58433783]
[1750220460184,4.723e-05,105410.0,105400.0,0.63433783]
[1750220460404,4.723e-05,105410.0,105400.0,0.58433783]
[1750220461933,4.723e-05,105410.0,105400.0,0.87543783]
[1750220463156,4.723e-05,105410.0,105400.0,0.92543783]
[1750220463640,4.723e-05,105410.0,105400.0,0.87543783]
[1750220465830,4.723e-05,105410.0,105400.0,1.03825652]
[1750220468434,4.723e-05,105410.0,105400.0,0.74715652]
[1750220470530,4.723e-05,105410.0,105400.0,0.74615652]
[1750220470959,4.723e-05,105410.0,105400.0,0.74915652]
[1750220471184,4.723e-05,105410.0,105400.0,0.75115652]
[1750220471427,4.723e-05,105410.0,105400.0,0.75263652]
[1750220473892,4.723e-05,105410.0,105400.0,1.04373652]
[1750220480804,4.723e-05,105410.0,105400.0,0.75263652]
[1750220495513,4.723e-05,105410.0,105400.0,0.69213652]
[1750220496751,4.723e-05,105410.0,105400.0,0.69229652]
[1750220496976,0.41373336,105410.0,105400.0,0.48227567]
[1750220497192,0.41373336,105410.0,105400.0,0.67775567]
[1750220497404,0.41373336,105410.0,105400.0,0.98339652]
[1750220498467,0.40424723,105410.0,105400.0,0.98339652]
[1750220498680,0.42321949,105410.0,105400.0,0.98339652]
[1750220502269,0.43270589,105410.0,105400.0,0.98339652]
[1750220502481,0.42321949,105410.0,105400.0,0.98339652]
[1750220502694,0.43270589,105410.0,105400.0,0.96885567]
[1750220503420,0.43270589,105410.0,105400.0,0.67775567]
[1750220503751,0.42321949,105410.0,105400.0,0.67775567]
[1750220503958,0.43270589,105410.0,105400.0,0.67775567]
[1750220504517,0.42321949,105410.0,105400.0,0.67775567]
[1750220505592,0.43270589,105410.0,105400.0,0.67775567]
[1750220506455,0.64141445,105410.0,105400.0,0.48227603]
[1750220506695,0.63192841,105410.0,105400.0,0.67731603]
[1750220507153,0.62244219,105410.0,105400.0,0.67731621]
[1750220507374,0.62244219,105410.0,105400.0,0.69629072]
[1750220507591,0.62244219,105410.0,105400.0,0.69629027]
[1750220508275,0.62244219,105410.0,105400.0,0.67712541]
[1750220508541,0.62244219,105410.0,105400.0,0.67716541]
[1750220508756,0.61295579,105410.0,105400.0,0.65838125]
[1750220508976,0.6034693,105410.0,105400.0,0.65838125]
[1750220509408,0.6034693,105410.0,105400.0,0.66786864]
[1750220510097,0.6034693,105410.0,105400.0,0.67735585]
[1750220510324,0.6034693,105410.0,105400.0,0.68684297]
[1750220511235,0.61295579,105410.0,105400.0,0.68684297]
[1750220511456,0.42321994,105410.0,105400.0,0.68684297]
[1750220511674,0.4327058,105410.0,105400.0,0.69633]
[1750220512125,0.41373318,105410.0,105400.0,0.69633]
[1750220512369,0.4232194,105410.0,105400.0,0.69633]
[1750220512586,0.44219238,105410.0,105400.0,0.69633]
[1750220513232,0.34004723,105410.0,105400.0,0.69633]
[1750220513465,0.39915569,105420.0,105410.0,0.21819451]
[1750220513685,0.34948505,105420.0,105410.0,0.31443627]
[1750220513899,0.3684556,105420.0,105410.0,0.31443627]
[1750220514122,0.4313556,105420.0,105410.0,0.31443627]
[1750220515066,0.4323556,105420.0,105410.0,0.31443627]
[1750220515489,0.43335551,105420.0,105410.0,0.31443627]
[1750220516450,0.4428411,105420.0,105410.0,0.31443627]
[1750220516673,0.44284101,105420.0,105410.0,0.31443627]
[1750220517613,0.25615505,105420.0,105410.0,0.31443627]
[1750220517862,0.10284164,105420.0,105410.0,0.35455627]
[1750220518077,0.30204473,105420.0,105410.0,0.34507014]
[1750220518295,0.30204545,105420.0,105410.0,0.36404267]
[1750220518767,0.11232813,105420.0,105410.0,0.3735288]
[1750220518983,0.11224071,105420.0,105410.0,0.3735288]
[1750220519833,0.45224071,105420.0,105410.0,0.3735288]
[1750220524866,0.44275485,105420.0,105410.0,0.3735288]
[1750220529939,0.63247217,105420.0,105410.0,0.33558374]
[1750220530154,0.63247217,105420.0,105410.0,0.36404294]
[1750220530810,0.44275485,105420.0,105410.0,0.37352862]
[1750220532300,0.4237834,105420.0,105410.0,0.37352862]
[1750220532734,0.39138295,105420.0,105410.0,0.37352862]
[1750220532961,0.37045587,105420.0,105410.0,0.37352862]
[1750220533809,0.36097037,105420.0,105410.0,0.37352862]
[1750220534018,0.37045578,105420.0,105410.0,0.37352862]
[1750220534255,0.38942705,105420.0,105410.0,0.37352862]
[1750220534900,0.37994137,105420.0,105410.0,0.37352862]
[1750220535761,0.37045578,105420.0,105410.0,0.37352862]
[1750220535979,0.37994128,105420.0,105410.0,0.37352862]
[1750220536191,0.38942696,105420.0,105410.0,0.37352862]
[1750220536600,0.37994128,105420.0,105410.0,0.37352862]
[1750220537257,0.37994182,105420.0,105410.0,0.37352862]
[1750220537473,0.3894275,105420.0,105410.0,0.37352862]
[1750220537909,0.38942795,105420.0,105410.0,0.37352862]
[1750220538176,0.42152795,105420.0,105410.0,0.37352862]
[1750220538399,0.4215284,105420.0,105410.0,0.35455627]
[1750220538607,0.4215284,105420.0,105410.0,0.36404249]
[1750220538840,0.44429421,105420.0,105410.0,0.36404249]
[1750220539065,0.47439421,105420.0,105410.0,0.36404249]
[1750220539295,0.46490835,105420.0,105410.0,0.37352862]
[1750220543905,0.10014254,105420.0,105410.0,0.37352862]
[1750220546381,0.07004254,105420.0,105410.0,0.37352862]
[1750220547608,0.5125265,105430.0,105420.0,0.21817373]
[1750220547814,0.5125265,105430.0,105420.0,0.38225896]
[1750220547815,0.45991065,105430.0,105420.0,0.38225896]
[1750220548018,0.44094118,105430.0,105420.0,0.47850072]
[1750220548193,0.09139947,105430.0,105420.0,0.47850072]
[1750220548402,0.40861608,105430.0,105420.0,0.47850072]
[1750220548604,0.44088434,105430.0,105420.0,0.47850072]
[1750220548771,0.44288434,105430.0,105420.0,0.47850072]
[1750220548972,0.44288715,105430.0,105420.0,0.47850072]
[1750220549487,0.44488715,105430.0,105420.0,0.47850072]
[1750220550125,0.28510286,105430.0,105420.0,0.45004476]
[1750220550539,0.30634737,105430.0,105420.0,0.45953053]
[1750220550750,0.2968625,105430.0,105420.0,0.35380309]
[1750220550990,0.62737754,105430.0,105420.0,0.34431732]
[1750220551197,0.65016374,105430.0,105420.0,0.34431732]
[1750220551419,0.65016374,105430.0,105420.0,0.1546]
[1750220551843,0.65016374,105430.0,105420.0,0.16408586]
[1750220553785,0.199203,105420.0,105410.0,0.24882802]
[1750220554006,0.00948568,105420.0,105410.0,0.49962978]
[1750220554423,0.01897145,105420.0,105410.0,0.50911591]
[1750220554863,0.01897127,105420.0,105410.0,0.50911591]
[1750220556443,0.02845677,105420.0,105410.0,0.50911591]
[1750220557597,0.03794218,105420.0,105410.0,0.50911591]
[1750220559192,0.04742795,105420.0,105410.0,0.50911591]
[1750220559608,0.03794218,105420.0,105410.0,0.50911591]
[1750220560045,0.0284565,105420.0,105410.0,0.50911591]
[1750220560877,0.03794218,105420.0,105410.0,0.50911591]
[1750220563925,0.03794218,105420.0,105410.0,0.50911645]
[1750220565086,0.04742795,105420.0,105410.0,0.51860285]
[1750220565301,0.0474284,105420.0,105410.0,0.51860285]
[1750220567149,0.29874572,105420.0,105410.0,0.09624176]
[1750220567336,0.27028895,105420.0,105410.0,0.39338198]
[1750220567781,0.26080318,105420.0,105410.0,0.39338198]
[1750220567998,0.26080318,105420.0,105410.0,0.20364676]
[1750220569088,0.26080318,105420.0,105410.0,0.39338207]
[1750220569309,0.26080318,105420.0,105410.0,0.40286865]
[1750220569808,0.26080318,105420.0,105410.0,0.41235514]
[1750220570744,0.26080318,105420.0,105410.0,0.42184145]
[1750220571386,0.26080318,105420.0,105410.0,0.41235514]
[1750220574694,0.26080318,105420.0,105410.0,0.42184154]
[1750220574928,0.23020318,105420.0,105410.0,0.42184154]
[1750220577664,0.26320318,105420.0,105410.0,0.39338207]
[1750220577870,0.26320318,105420.0,105410.0,0.20364676]
[1750220578298,0.59371732,105420.0,105410.0,0.0398]
[1750220578463,0.60382189,105410.0,105400.0,0.09373806]
[1750220578683,0.5392408,105400.0,105390.0,0.0398]
[1750220578896,0.626627,105400.0,105390.0,0.18615553]
[1750220579301,0.64442207,105400.0,105390.0,0.18615553]
[1750220580031,0.64442207,105400.0,105390.0,0.19460967]
[1750220580226,0.64442207,105400.0,105390.0,0.19456967]
[1750220580633,0.64442207,105400.0,105390.0,8.967e-05]
[1750220580860,0.64442207,105400.0,105390.0,0.19456967]
[1750220582214,0.64442274,105400.0,105390.0,0.19456967]
[1750220582917,0.2607597,105390.0,105380.0,0.26772]
[1750220583147,0.2607597,105390.0,105380.0,0.42240723]
[1750220583574,0.1992597,105390.0,105380.0,0.42240723]
[1750220584542,0.1992597,105390.0,105380.0,0.43189669]
[1750220586492,0.20874799,105390.0,105380.0,0.62168602]
[1750220586695,0.20874799,105390.0,105380.0,0.6406644]
[1750220587249,0.20874799,105390.0,105380.0,0.6311753]
[1750220588075,0.1992597,105390.0,105380.0,0.6311753]
[1750220590948,0.1992597,105390.0,105380.0,0.6406644]
[1750220592616,0.1992597,105390.0,105380.0,0.4453444]
[1750220593011,0.1992597,105390.0,105380.0,0.4358553]
[1750220593221,0.1992597,105390.0,105380.0,0.4032553]
[1750220594248,0.1992597,105390.0,105380.0,0.41274449]
[1750220595176,0.5392597,105390.0,105380.0,0.44554449]
[1750220595709,0.5392597,105390.0,105380.0,0.41274449]
[1750220599196,0.5392597,105390.0,105380.0,0.45293359]
[1750220599198,0.5392597,105390.0,105380.0,0.4624226]
[1750220599489,0.5392597,105390.0,105380.0,0.4941226]
[1750220599982,0.5392597,105390.0,105380.0,0.48463359]
[1750220600845,0.5392597,105390.0,105380.0,0.41274449]
[1750220602515,0.5392597,105390.0,105380.0,0.4032553]
[1750220604535,0.52977132,105390.0,105380.0,0.4032553]
[1750220605852,0.55257039,105390.0,105380.0,0.4032553]
[1750220611466,0.55257039,105390.0,105380.0,0.39376602]
[1750220611870,0.55257039,105390.0,105380.0,0.19448723]
[1750220612773,0.55257039,105390.0,105380.0,0.19428723]
[1750220615813,0.55257039,105390.0,105380.0,0.03996723]
[1750220616066,0.02847,105370.0,105360.0,0.34995722]
[1750220616322,0.55827734,105370.0,105360.0,0.65946785]
[1750220616583,0.58107641,105370.0,105360.0,0.65946785]
[1750220616817,0.39126907,105370.0,105360.0,0.65946785]
[1750220617117,0.39126907,105370.0,105360.0,0.66895848]
[1750220617372,0.40076192,105370.0,105360.0,0.67095848]
[1750220617632,0.40076192,105370.0,105360.0,0.67195848]
[1750220617872,0.37796036,105370.0,105360.0,0.67195848]
[1750220618503,0.37796036,105370.0,105360.0,0.58621565]
[1750220619148,0.37796036,105370.0,105360.0,0.57672493]
[1750220619344,0.37796036,105370.0,105360.0,0.58621574]
[1750220619986,0.5677677,105370.0,105360.0,0.58621574]
[1750220620404,0.55827797,105370.0,105360.0,0.58621574]
[1750220621264,0.58726331,105370.0,105360.0,0.58621574]
[1750220621467,0.58726331,105370.0,105360.0,0.43189574]
[1750220621669,0.58726331,105370.0,105360.0,0.58621574]
[1750220621921,0.57777331,105370.0,105360.0,0.57672493]
[1750220622338,0.57777331,105370.0,105360.0,0.56723403]
[1750220623054,0.57777331,105370.0,105360.0,0.57672493]
[1750220623299,0.57777331,105370.0,105360.0,0.58621574]
[1750220624420,0.57777331,105370.0,105360.0,0.59570646]
[1750220624772,0.38796597,105370.0,105360.0,0.59570583]
[1750220625934,0.39745525,105370.0,105360.0,0.59570583]
[1750220628760,0.38796507,105370.0,105360.0,0.59570583]
[1750220629922,0.39745516,105370.0,105360.0,0.59570583]
[1750220630142,0.40694534,105370.0,105360.0,0.59570583]
[1750220630331,0.41643561,105370.0,105360.0,0.59570583]
[1750220631176,0.60624295,105370.0,105360.0,0.4318952]
[1750220631423,0.59675358,105370.0,105360.0,0.51182448]
[1750220632233,0.59675358,105370.0,105360.0,0.5213152]
[1750220632745,0.59675358,105370.0,105360.0,0.5818152]
[1750220633348,0.59675358,105370.0,105360.0,0.5515152]
[1750220634107,0.57777331,105370.0,105360.0,0.49284304]
[1750220634352,0.56828304,105370.0,105360.0,0.29352901]
[1750220634832,0.59978304,105370.0,105360.0,0.29352901]
[1750220635234,0.59978304,105370.0,105360.0,0.29252901]
[1750220636172,0.59978304,105370.0,105360.0,0.29052901]
[1750220637398,0.63088304,105370.0,105360.0,0.03996725]
[1750220637615,0.63088304,105370.0,105360.0,0.19428725]
[1750220638284,0.63088304,105370.0,105360.0,0.03996725]
[1750220638509,0.63088304,105370.0,105360.0,0.19428725]
[1750220638946,0.63088304,105370.0,105360.0,4.725e-05]
[1750220639234,0.63088304,105370.0,105360.0,0.19412725]
[1750220643637,0.63088304,105370.0,105360.0,0.03980725]
[1750220643866,0.63088304,105370.0,105360.0,0.19412725]
[1750220650482,0.63088304,105370.0,105360.0,0.03980725]
[1750220650671,0.63088304,105370.0,105360.0,0.19412725]
[1750220651576,0.56828304,105370.0,105360.0,0.19412725]
[1750220654488,0.56828304,105370.0,105360.0,0.39344369]
[1750220654996,0.56828304,105370.0,105360.0,0.38395261]
[1750220655201,0.55879268,105370.0,105360.0,0.19412725]
[1750220660724,0.55879268,105370.0,105360.0,0.03980725]
[1750220660936,0.55879268,105370.0,105360.0,0.19412725]
[1750220662029,0.59059268,105370.0,105360.0,0.19412725]
[1750220662464,0.55879268,105370.0,105360.0,0.19412725]
[1750220666149,0.55879268,105370.0,105360.0,4.725e-05]
[1750220666359,0.55879268,105370.0,105360.0,0.19412725]
[1750220671178,0.58731868,105370.0,105360.0,0.19412725]
[1750220675926,0.42794709,105370.0,105360.0,0.19412725]
[1750220685251,0.45074564,105370.0,105360.0,0.19412725]
[1750220685970,0.47920046,105370.0,105360.0,0.19412725]
[1750220687200,0.47920046,105370.0,105360.0,0.22572725]
[1750220688499,0.47920046,105370.0,105360.0,0.03164725]
[1750220688703,0.47920046,105370.0,105360.0,0.22568725]
[1750220690188,0.47920046,105370.0,105360.0,0.07136725]
[1750220690400,0.47920046,105370.0,105360.0,0.19408725]
[1750220691697,0.54330046,105370.0,105360.0,0.03976725]
[1750220691949,0.54330046,105370.0,105360.0,0.19404725]
[1750220692163,0.21831877,105350.0,105340.0,0.27374726]
[1750220692427,0.55831877,105350.0,105340.0,0.37007891]
[1750220692627,0.56213399,105350.0,105340.0,0.40979891]
[1750220692843,0.55264192,105350.0,105340.0,0.55458594]
[1750220693276,0.55264192,105350.0,105340.0,0.57357179]
[1750220694128,0.57168516,105350.0,105340.0,0.57357179]
[1750220694549,0.57168516,105350.0,105340.0,0.57457179]
[1750220694764,0.57168516,105350.0,105340.0,0.58606458]
[1750220694984,0.57168516,105350.0,105340.0,0.59555728]
[1750220695932,0.54888661,105350.0,105340.0,0.59555682]
[1750220696143,0.37802711,105350.0,105340.0,0.59555592]
[1750220696344,0.38751855,105350.0,105340.0,0.59555592]
[1750220697448,0.39701062,105350.0,105340.0,0.59555592]
[1750220697662,0.40650278,105350.0,105340.0,0.58606349]
[1750220697870,0.58685462,105350.0,105340.0,0.56707836]
[1750220698072,0.57736282,105350.0,105340.0,0.56707882]
[1750220698274,0.56787084,105350.0,105340.0,0.56707891]
[1750220698725,0.55837877,105350.0,105340.0,0.56707891]
[1750220699530,0.55837877,105350.0,105340.0,0.41279891]
[1750220699735,0.55837877,105350.0,105340.0,0.56707891]
[1750220700414,0.55837877,105350.0,105340.0,0.37307891]
[1750220700646,0.54888661,105350.0,105340.0,0.32577147]
[1750220701085,0.54888661,105350.0,105340.0,0.00308971]
[1750220701305,0.54888661,105350.0,105340.0,0.19712971]
[1750220701514,0.54888661,105350.0,105340.0,0.04284971]
[1750220701754,0.57166419,105350.0,105340.0,0.04284971]
[1750220701976,0.57166419,105350.0,105340.0,0.19712971]
[1750220702207,0.63666419,105350.0,105340.0,0.00308971]
[1750220702455,0.63666419,105350.0,105330.0,0.03976]
[1750220702456,0.53935428,105340.0,105330.0,0.03976]
[1750220702649,0.60435428,105340.0,105330.0,0.04023282]
[1750220702896,0.62713186,105340.0,105330.0,0.19451282]
[1750220703084,0.62713186,105340.0,105330.0,0.04023282]
[1750220703338,0.62713186,105340.0,105330.0,0.19451282]
[1750220703989,0.62713186,105340.0,105330.0,0.04023282]
[1750220704206,0.54888692,105320.0,105310.0,0.33756345]
[1750220704429,0.54888692,105320.0,105310.0,0.36171753]
[1750220704430,0.53939232,105320.0,105310.0,0.36171753]
[1750220704653,0.52989745,105320.0,105310.0,0.35222176]
[1750220705379,0.52989745,105320.0,105310.0,0.32122176]
[1750220705603,0.52989745,105320.0,105310.0,0.07066]
[1750220705816,0.55843545,105320.0,105310.0,0.19408]
[1750220706528,0.55843545,105320.0,105310.0,0.03976]
[1750220706750,0.53941107,105310.0,105300.0,0.03976]
[1750220706943,0.53941107,105310.0,105300.0,0.20295241]
[1750220707439,0.53941107,105310.0,105300.0,0.16319241]
[1750220708127,0.54041107,105310.0,105300.0,0.16319241]
[1750220709075,0.54141107,105310.0,105300.0,0.16319241]
[1750220709265,0.60301107,105310.0,105300.0,0.16079241]
[1750220709528,0.60301107,105310.0,105300.0,0.15432]
[1750220709784,0.63154529,105310.0,105300.0,0.15432]
[1750220710038,0.60064529,105310.0,105300.0,0.15432]
[1750220710459,0.56994529,105310.0,105300.0,0.15432]
[1750220710691,0.56994529,105310.0,105300.0,0.3853501]
[1750220710906,0.57944079,105310.0,105300.0,0.52128817]
[1750220711134,0.56994529,105310.0,105300.0,0.31236176]
[1750220711327,0.56994529,105310.0,105300.0,0.15432]
[1750220714502,0.5604497,105310.0,105300.0,0.15432]
[1750220714937,0.5604497,105310.0,105300.0,0.34425352]
[1750220715158,0.5604497,105310.0,105300.0,0.3537501]
[1750220715866,0.5604497,105310.0,105300.0,0.15432]
[1750220716717,0.5604497,105310.0,105300.0,0.38655001]
[1750220717154,0.37053422,105310.0,105300.0,0.18712]
[1750220717366,0.5604497,105310.0,105300.0,0.18712]
[1750220718038,0.5604497,105310.0,105300.0,0.15432]
[1750220718259,0.5604497,105310.0,105300.0,0.3537501]
[1750220718662,0.01899271,105300.0,105290.0,0.31390549]
[1750220718880,0.02848866,105300.0,105290.0,0.56450725]